fUST/lending_fUST_20250623
["ID","MTS","AMOUNT","RATE_DAILY","PERIOD"]
[367073500,1750648235586,-460.0,0.00021917,2]
[367073501,1750648235596,-460.0,0.00021917,2]
[367073502,1750648235606,-1148.79,0.00021917,2]
[367073503,1750648235616,-460.0,0.00021917,2]
[367073504,1750648235625,-460.0,0.00021917,2]
[367073505,1750648235634,-460.0,0.00021917,2]
[367073506,1750648235644,-460.0,0.00021917,2]
[367073507,1750648235654,-311.77418574,0.00021917,2]
[367073508,1750648235663,-460.0,0.00021917,2]
[367073509,1750648235672,-460.0,0.00021917,2]
[367073510,1750648235681,-460.0,0.00021917,2]
[367073511,1750648235691,-460.0,0.00021917,2]
[367073512,1750648235701,-460.0,0.00021917,2]
[367073513,1750648235710,-460.0,0.00021917,2]
[367073514,1750648235720,-460.0,0.00021917,2]
[367073515,1750648235729,-460.0,0.00021917,2]
[367073516,1750648235739,-460.0,0.00021917,2]
[367073517,1750648235748,-460.0,0.00021917,2]
[367073518,1750648235758,-460.0,0.00021917,2]
[367073519,1750648235768,-1634.17,0.00021917,2]
[367073520,1750648235778,-453.31591758,0.00021917,2]
[367073521,1750648235788,-460.0,0.00021917,2]
[367073522,1750648235798,-460.0,0.00021917,2]
[367073523,1750648235809,-487.48,0.00021917,2]
[367073524,1750648235818,-460.0,0.00021917,2]
[367073525,1750648235828,-460.0,0.00021917,2]
[367073526,1750648235838,-1369.06,0.00021917,2]
[367073527,1750648235848,-460.0,0.00021917,2]
[367073528,1750648235857,-460.0,0.00021917,2]
[367073529,1750648235866,-899.86,0.00021917,2]
[367073530,1750648235875,-460.0,0.00021917,2]
[367073531,1750648235884,-521.17221251,0.00021917,2]
[367073532,1750648235894,-463.7371738,0.00021917,2]
[367073533,1750648235903,-1320.68,0.00021917,2]
[367073534,1750648235912,-460.0,0.00021917,2]
[367073535,1750648235922,-432.07801364,0.00021917,2]
[367073536,1750648235931,-460.0,0.00021917,2]
[367073537,1750648235941,-460.0,0.00021917,2]
[367073538,1750648235950,-460.0,0.00021917,2]
[367073539,1750648235960,-460.0,0.00021917,2]
[367073540,1750648235970,-460.0,0.00021917,2]
[367073541,1750648235979,-460.0,0.00021917,2]
[367073542,1750648235991,-460.0,0.00021917,2]
[367073543,1750648236002,-611.29,0.00021917,2]
[367073544,1750648236012,-460.0,0.00021917,2]
[367073545,1750648236022,-1245.84,0.00021917,2]
[367073546,1750648236031,-460.0,0.00021917,2]
[367073547,1750648236040,-460.0,0.00021917,2]
[367073548,1750648236050,-460.0,0.00021917,2]
[367073549,1750648236060,-460.0,0.00021917,2]
[367073550,1750648236071,-460.0,0.00021917,2]
[367073551,1750648236085,-460.0,0.00021917,2]
[367073552,1750648236096,-460.0,0.00021917,2]
[367073553,1750648236105,-460.0,0.00021917,2]
[367073554,1750648236116,-460.0,0.00021917,2]
[367073555,1750648236127,-1243.7,0.00021917,2]
[367073556,1750648236137,-521.91879321,0.00021917,2]
[367073557,1750648236147,-405.51721745,0.00021917,2]
[367073558,1750648236156,-460.0,0.00021917,2]
[367073559,1750648236167,-460.0,0.00021917,2]
[367073560,1750648236177,-460.0,0.00021917,2]
[367073561,1750648236187,-460.0,0.00021917,2]
[367073562,1750648236196,-460.0,0.00021917,2]
[367073563,1750648236206,-460.0,0.00021917,2]
[367073564,1750648236216,-460.0,0.00021917,2]
[367073565,1750648236225,-460.0,0.00021917,2]
[367073566,1750648236234,-460.0,0.00021917,2]
[367073567,1750648236244,-460.0,0.00021917,2]
[367073568,1750648236253,-1591.63,0.00021917,2]
[367073569,1750648236263,-815.68,0.00021917,2]
[367073570,1750648236273,-460.0,0.00021917,2]
[367073571,1750648236283,-460.0,0.00021917,2]
[367073572,1750648236292,-460.0,0.00021917,2]
[367073573,1750648236302,-460.0,0.00021917,2]
[367073574,1750648236312,-500.0,0.00021917,2]
[367073575,1750648236324,-462.16359825,0.00021917,2]
[367073576,1750648236333,-460.0,0.00021917,2]
[367073577,1750648236343,-683.46,0.00021917,2]
[367073578,1750648236353,-460.0,0.00021917,2]
[367073579,1750648236363,-460.0,0.00021917,2]
[367073580,1750648236372,-535.94999602,0.00021917,2]
[367073581,1750648236382,-460.0,0.00021917,2]
[367073582,1750648236391,-460.0,0.00021917,2]
[367073583,1750648236400,-1969.29,0.00021917,2]
[367073584,1750648236411,-460.0,0.00021917,2]
[367073585,1750648236420,-463.64912578,0.00021917,2]
[367073586,1750648236431,-460.0,0.00021917,2]
[367073587,1750648236440,-460.0,0.00021917,2]
[367073588,1750648236450,-460.34572644,0.00021917,2]
[367073589,1750648236459,-460.0,0.00021917,2]
[367073590,1750648236469,-528.92987288,0.00021917,2]
[367073591,1750648236478,-780.9,0.00021917,2]
[367073592,1750648236489,-460.0,0.00021917,2]
[367073593,1750648236498,-460.0,0.00021917,2]
[367073594,1750648236508,-460.0,0.00021917,2]
[367073595,1750648236519,-460.0,0.00021917,2]
[367073596,1750648236528,-460.0,0.00021917,2]
[367073597,1750648236538,-460.0,0.00021917,2]
[367073598,1750648236548,-460.0,0.00021917,2]
[367073599,1750648236558,-460.0,0.00021917,2]
[367073600,1750648236568,-460.0,0.00021917,2]
[367073601,1750648236578,-460.0,0.00021917,2]
[367073602,1750648236588,-460.0,0.00021917,2]
[367073603,1750648236597,-460.0,0.00021917,2]
[367073604,1750648236607,-966.04,0.00021917,2]
[367073605,1750648236616,-460.0,0.00021917,2]
[367073606,1750648236626,-448.74369942,0.00021917,2]
[367073607,1750648236635,-538.43,0.00021917,2]
[367073608,1750648236645,-460.0,0.00021917,2]
[367073609,1750648236655,-460.0,0.00021917,2]
[367073610,1750648236665,-460.0,0.00021917,2]
[367073611,1750648236675,-460.0,0.00021917,2]
[367073612,1750648236685,-460.0,0.00021917,2]
[367073613,1750648236694,-530.0,0.00021917,2]
[367073614,1750648236704,-460.0,0.00021917,2]
[367073615,1750648236714,-428.45006287,0.00021917,2]
[367073616,1750648236724,-460.0,0.00021917,2]
[367073617,1750648236734,-460.0,0.00021917,2]
[367073618,1750648236743,-460.0,0.00021917,2]
[367073619,1750648236753,-460.0,0.00021917,2]
[367073620,1750648236762,-460.0,0.00021917,2]
[367073621,1750648236772,-460.0,0.00021917,2]
[367073622,1750648236781,-460.0,0.00021917,2]
[367073623,1750648236791,-460.0,0.00021917,2]
[367073624,1750648236801,-582.91,0.00021917,2]
[367073625,1750648236811,-681.57,0.00021917,2]
[367073626,1750648236824,-528.21,0.00021917,2]
[367073627,1750648236834,-3215.95,0.00021917,2]
[367073628,1750648236844,-473.78,0.00021917,2]
[367073629,1750648236854,-500.0,0.00021917,2]
[367073630,1750648236865,-460.0,0.00021917,2]
[367073631,1750648236874,-460.0,0.00021917,2]
[367073632,1750648236884,-460.0,0.00021917,2]
[367073633,1750648236894,-460.0,0.00021917,2]
[367073634,1750648236904,-460.0,0.00021917,2]
[367073635,1750648236915,-460.0,0.00021917,2]
[367073636,1750648236924,-578.65,0.00021917,2]
[367073637,1750648236935,-662.73,0.00021917,2]
[367073638,1750648236945,-462.56135316,0.00021917,2]
[367073639,1750648236954,-1195.17,0.00021917,2]
[367073640,1750648236964,-460.0,0.00021917,2]
[367073641,1750648236974,-461.09361905,0.00021917,2]
[367073642,1750648236984,-460.0,0.00021917,2]
[367073643,1750648236994,-460.0,0.00021917,2]
[367073644,1750648237004,-460.0,0.00021917,2]
[367073645,1750648237013,-460.0,0.00021917,2]
[367073646,1750648237024,-460.81466341,0.00021917,2]
[367073647,1750648237034,-460.0,0.00021917,2]
[367073648,1750648237044,-500.0,0.00021917,2]
[367073649,1750648237055,-460.0,0.00021917,2]
[367073650,1750648237063,-460.0,0.00021917,2]
[367073651,1750648237073,-460.0,0.00021917,2]
[367073652,1750648237085,-1000.09,0.00021917,2]
[367073653,1750648237094,-460.0,0.00021917,2]
[367073654,1750648237103,-460.0,0.00021917,2]
[367073655,1750648237113,-460.0,0.00021917,2]
[367073656,1750648237123,-500.0,0.00021917,2]
[367073657,1750648237132,-460.0,0.00021917,2]
[367073658,1750648237142,-500.0,0.00021917,2]
[367073659,1750648237151,-500.0,0.00021917,2]
[367073660,1750648237161,-500.0,0.00021917,2]
[367073661,1750648237171,-500.0,0.00021917,2]
[367073662,1750648237180,-460.0,0.00021917,2]
[367073663,1750648237190,-460.0,0.00021917,2]
[367073664,1750648237200,-500.0,0.00021917,2]
[367073665,1750648237209,-500.0,0.00021917,2]
[367073666,1750648237218,-500.0,0.00021917,2]
[367073667,1750648237227,-500.0,0.00021917,2]
[367073668,1750648237236,-500.0,0.00021917,2]
[367073669,1750648237246,-500.0,0.00021917,2]
[367073670,1750648237255,-500.0,0.00021917,2]
[367073671,1750648237264,-500.0,0.00021917,2]
[367073672,1750648237273,-500.0,0.00021917,2]
[367073673,1750648237283,-540.24256566,0.00021917,2]
[367073674,1750648237293,-460.0,0.00021917,2]
[367073675,1750648237302,-460.0,0.00021917,2]
[367073676,1750648237312,-460.0,0.00021917,2]
[367073677,1750648237321,-460.0,0.00021917,2]
[367073678,1750648237331,-460.0,0.00021917,2]
[367073679,1750648237340,-460.0,0.00021917,2]
[367073680,1750648237349,-460.0,0.00021917,2]
[367073681,1750648237359,-642.26,0.00021917,2]
[367073682,1750648237368,-460.0,0.00021917,2]
[367073683,1750648237378,-460.0,0.00021917,2]
[367073684,1750648237387,-514.39,0.00021917,2]
[367073685,1750648237396,-484.27,0.00021917,2]
[367073686,1750648237405,-460.0,0.00021917,2]
[367073687,1750648237415,-460.0,0.00021917,2]
[367073688,1750648237424,-2073.77,0.00021917,2]
[367073689,1750648237434,-460.0,0.00021917,2]
[367073690,1750648237443,-460.0,0.00021917,2]
[367073691,1750648237453,-460.0,0.00021917,2]
[367073692,1750648237462,-460.0,0.00021917,2]
[367073693,1750648237472,-250.82572444,0.00021917,2]
[367073694,1750648237483,-809.3,0.00021917,2]
[367073695,1750648237492,-460.0,0.00021917,2]
[367073696,1750648237502,-749.46,0.00021917,2]
[367073697,1750648237512,-460.0,0.00021917,2]
[367073698,1750648237521,-339.05404701,0.00021917,2]
[367073699,1750648237531,-1080.89,0.00021917,2]
[367073700,1750648237540,-460.0,0.00021917,2]
[367073701,1750648237550,-460.0,0.00021917,2]
[367073702,1750648237561,-1002.45,0.00021917,2]
[367073703,1750648237570,-6488.68,0.00021917,2]
[367073704,1750648237579,-500.0,0.00021917,2]
[367073705,1750648237589,-500.0,0.00021917,2]
[367073706,1750648237751,-500.0,0.00021917,2]
[367073707,1750648237785,-460.0,0.00021917,2]
[367073708,1750648237795,-500.0,0.00021917,2]
[367073709,1750648237804,-500.0,0.00021917,2]
[367073710,1750648237813,-502.68284937,0.00021917,2]
[367073711,1750648237822,-460.0,0.00021917,2]
[367073712,1750648237832,-460.0,0.00021917,2]
[367073713,1750648237841,-434.52499164,0.00021917,2]
[367073714,1750648237851,-460.0,0.00021917,2]
[367073715,1750648237861,-460.0,0.00021917,2]
[367073716,1750648237870,-460.0,0.00021917,2]
[367073717,1750648237879,-462.50570052,0.00021917,2]
[367073718,1750648237889,-460.0,0.00021917,2]
[367073719,1750648237898,-460.0,0.00021917,2]
[367073720,1750648237907,-460.0,0.00021917,2]
[367073721,1750648237917,-460.0,0.00021917,2]
[367073722,1750648237926,-460.0,0.00021917,2]
[367073723,1750648237935,-725.52,0.00021917,2]
[367073724,1750648237945,-460.0,0.00021917,2]
[367073725,1750648237954,-460.0,0.00021917,2]
[367073726,1750648237963,-460.0,0.00021917,2]
[367073727,1750648237973,-460.0,0.00021917,2]
[367073728,1750648237983,-4830.54,0.00021917,2]
[367073729,1750648237997,-460.0,0.00021917,2]
[367073730,1750648238012,-460.0,0.00021917,2]
[367073731,1750648238022,-460.0,0.00021917,2]
[367073732,1750648238032,-463.45071398,0.00021917,2]
[367073733,1750648238042,-460.0,0.00021917,2]
[367073734,1750648238051,-460.0,0.00021917,2]
[367073735,1750648238061,-460.0,0.00021917,2]
[367073736,1750648238072,-460.0,0.00021917,2]
[367073737,1750648238084,-4998.99,0.00021917,2]
[367073738,1750648238095,-1079.96,0.00021917,2]
[367073739,1750648238105,-717.93,0.00021917,2]
[367073740,1750648238115,-943.72,0.00021917,2]
[367073741,1750648238125,-460.0,0.00021917,2]
[367073742,1750648238135,-467.38477867,0.00021917,2]
[367073743,1750648238144,-460.0,0.00021917,2]
[367073744,1750648238156,-547.31,0.00021917,2]
[367073745,1750648238166,-460.0,0.00021917,2]
[367073747,1750648238175,-1031.92,0.00021917,2]
[367073749,1750648238185,-460.0,0.00021917,2]
[367073750,1750648238194,-460.0,0.00021917,2]
[367073751,1750648238204,-906.08,0.00021917,2]
[367073752,1750648238214,-460.0,0.00021917,2]
[367073753,1750648238224,-515.48,0.00021917,2]
[367073754,1750648238234,-460.0,0.00021917,2]
[367073755,1750648238243,-447.64003237,0.00021917,2]
[367073756,1750648238253,-528.63,0.00021917,2]
[367073757,1750648238263,-500.0,0.00021917,2]
[367073758,1750648238273,-462.8313835,0.00021917,2]
[367073759,1750648238282,-460.0,0.00021917,2]
[367073760,1750648238291,-1198.49,0.00021917,2]
[367073761,1750648238301,-6452.47,0.00021917,2]
[367073762,1750648238310,-460.0,0.00021917,2]
[367073763,1750648238320,-460.0,0.00021917,2]
[367073764,1750648238330,-460.0,0.00021917,2]
[367073765,1750648238339,-460.0,0.00021917,2]
[367073766,1750648238349,-460.0,0.00021917,2]
[367073767,1750648238358,-874.32,0.00021917,2]
[367073768,1750648238368,-714.72,0.00021917,2]
[367073769,1750648238377,-460.0,0.00021917,2]
[367073770,1750648238386,-864.6,0.00021917,2]
[367073771,1750648238396,-601.26147609,0.00021917,2]
[367073772,1750648238406,-460.0,0.00021917,2]
[367073773,1750648238415,-1040.02,0.00021917,2]
[367073774,1750648238425,-26.46055969,0.00021917,2]
[367073775,1750648238461,-433.53944031,0.00021917,2]
[367073776,1750648238470,-152.07341766,0.00021917,2]
[367073777,1750648238480,-1029.13,0.00021917,2]
[367073778,1750648238489,-460.0,0.00021917,2]
[367073779,1750648238499,-460.0,0.00021917,2]
[367073780,1750648238508,-460.0,0.00021917,2]
[367073781,1750648238517,-460.0,0.00021917,2]
[367073782,1750648238527,-460.0,0.00021917,2]
[367073783,1750648238537,-460.0,0.00021917,2]
[367073784,1750648238547,-460.0,0.00021917,2]
[367073785,1750648238557,-2202.0,0.00021917,2]
[367073786,1750648238566,-460.0,0.00021917,2]
[367073787,1750648238576,-460.0,0.00021917,2]
[367073788,1750648238586,-4648.79,0.00021917,2]
[367073789,1750648238595,-460.0,0.00021917,2]
[367073790,1750648238605,-3747.42,0.00021917,2]
[367073791,1750648238615,-460.0,0.00021917,2]
[367073792,1750648238625,-460.0,0.00021917,2]
[367073793,1750648238635,-460.0,0.00021917,2]
[367073794,1750648238645,-134.64538714,0.00021917,2]
[367073802,1750648239964,-768.31,0.00021907,10]
[367073803,1750648239974,-325.35461286,0.00021917,2]
[367073804,1750648239983,-581.96377743,0.00021917,2]
[367073805,1750648239992,-460.0,0.00021917,2]
[367073806,1750648240002,-460.0,0.00021917,2]
[367073807,1750648240058,-460.0,0.00021917,2]
[367073808,1750648240067,-460.0,0.00021917,2]
[367073809,1750648240078,-460.0,0.00021917,2]
[367073810,1750648240090,-603.56333278,0.00021917,2]
[367073811,1750648240100,-726.92,0.00021917,2]
[367073812,1750648240110,-460.0,0.00021917,2]
[367073813,1750648240119,-460.0,0.00021917,2]
[367073814,1750648240128,-1006.08,0.00021917,2]
[367073815,1750648240137,-460.0,0.00021917,2]
[367073816,1750648240148,-460.0,0.00021917,2]
[367073817,1750648240159,-460.0,0.00021917,2]
[367073818,1750648240168,-808.44,0.00021917,2]
[367073819,1750648240178,-460.0,0.00021917,2]
[367073820,1750648240188,-460.0,0.00021917,2]
[367073821,1750648240204,-460.0,0.00021917,2]
[367073822,1750648240213,-460.0,0.00021917,2]
[367073823,1750648240221,-2523.07,0.00021917,2]
[367073824,1750648240230,-460.0,0.00021917,2]
[367073825,1750648240242,-200.0,0.00021917,10]
[367073826,1750648240251,-639.5,0.00021917,2]
[367073827,1750648240261,-200.0,0.00021917,10]
[367073828,1750648240270,-831.26,0.00021917,2]
[367073830,1750648240279,-200.0,0.00021917,10]
[367073831,1750648240289,-1795.07,0.00021917,2]
[367073832,1750648240299,-200.0,0.00021917,10]
[367073833,1750648240308,-460.0,0.00021917,2]
[367073834,1750648240317,-460.0,0.00021917,2]
[367073835,1750648240327,-460.0,0.00021917,2]
[367073838,1750648240335,-460.0,0.00021917,2]
[367073839,1750648240345,-460.0,0.00021917,2]
[367073840,1750648240354,-405.37084892,0.00021917,2]
[367073841,1750648240363,-460.0,0.00021917,2]
[367073842,1750648240372,-460.0,0.00021917,2]
[367073843,1750648240382,-460.0,0.00021917,2]
[367073844,1750648240391,-1345.75,0.00021917,2]
[367073845,1750648240401,-460.0,0.00021917,2]
[367073846,1750648240410,-460.0,0.00021917,2]
[367073847,1750648240420,-460.0,0.00021917,2]
[367073848,1750648240429,-1971.45,0.00021917,2]
[367073849,1750648240439,-1000.0,0.00021917,2]
[367073850,1750648240448,-460.0,0.00021917,2]
[367073851,1750648240458,-781.78,0.00021917,2]
[367073852,1750648240467,-7048.04,0.00021917,2]
[367073853,1750648240476,-460.0,0.00021917,2]
[367073854,1750648240485,-460.0,0.00021917,2]
[367073855,1750648240494,-460.0,0.00021917,2]
[367073856,1750648240504,-549.78,0.00021917,2]
[367073857,1750648240513,-8390.22,0.00021917,2]
[367073858,1750648240522,-460.0,0.00021917,2]
[367073859,1750648240532,-460.0,0.00021917,2]
[367073860,1750648240541,-460.0,0.00021917,2]
[367073861,1750648240550,-460.0,0.00021917,2]
[367073862,1750648240559,-1027.51,0.00021917,2]
[367073863,1750648240568,-460.0,0.00021917,2]
[367073864,1750648240578,-460.0,0.00021917,2]
[367073865,1750648240587,-460.0,0.00021917,2]
[367073866,1750648240596,-460.0,0.00021917,2]
[367073867,1750648240606,-460.0,0.00021917,2]
[367073868,1750648240615,-460.0,0.00021917,2]
[367073869,1750648240624,-460.0,0.00021917,2]
[367073870,1750648240634,-460.0,0.00021917,2]
[367073871,1750648240643,-500.0,0.00021917,2]
[367073872,1750648240653,-500.0,0.00021917,2]
[367073873,1750648240663,-370.0,0.00021917,2]
[367073874,1750648240672,-500.0,0.00021917,2]
[367073875,1750648240683,-500.0,0.00021917,2]
[367073876,1750648240692,-500.0,0.00021917,2]
[367073877,1750648240702,-500.0,0.00021917,2]
[367073878,1750648240711,-500.0,0.00021917,2]
[367073879,1750648240720,-1396.09,0.00021917,2]
[367073880,1750648240730,-500.0,0.00021917,2]
[367073881,1750648240739,-500.0,0.00021917,2]
[367073882,1750648240748,-460.0,0.00021917,2]
[367073883,1750648240757,-500.0,0.00021917,2]
[367073884,1750648240766,-500.0,0.00021917,2]
[367073885,1750648240775,-500.0,0.00021917,2]
[367073886,1750648240785,-1949.02,0.00021917,2]
[367073887,1750648240794,-500.0,0.00021917,2]
[367073888,1750648240803,-503.64,0.00021917,2]
[367073889,1750648240812,-460.0,0.00021917,2]
[367073890,1750648240822,-500.0,0.00021917,2]
[367073891,1750648240831,-500.0,0.00021917,2]
[367073892,1750648240840,-433.05157772,0.00021917,2]
[367073893,1750648240848,-500.0,0.00021917,2]
[367073894,1750648240858,-500.0,0.00021917,2]
[367073895,1750648240866,-500.0,0.00021917,2]
[367073896,1750648240876,-460.0,0.00021917,2]
[367073897,1750648240885,-500.0,0.00021917,2]
[367073898,1750648240893,-500.0,0.00021917,2]
[367073899,1750648240902,-500.0,0.00021917,2]
[367073900,1750648240911,-460.0,0.00021917,2]
[367073901,1750648240920,-440.32705365,0.00021917,2]
[367073902,1750648240928,-500.0,0.00021917,2]
[367073903,1750648240937,-328.77,0.00021917,2]
[367073904,1750648240946,-460.0,0.00021917,2]
[367073905,1750648240954,-2376.16,0.00021917,2]
[367073906,1750648240963,-2759.67,0.00021917,2]
[367073907,1750648240972,-460.0,0.00021917,2]
[367073908,1750648240980,-635.28,0.00021917,2]
[367073909,1750648240989,-460.0,0.00021917,2]
[367073910,1750648240998,-460.0,0.00021917,2]
[367073911,1750648241007,-460.0,0.00021917,2]
[367073912,1750648241016,-499.06,0.00021917,2]
[367073913,1750648241026,-460.0,0.00021917,2]
[367073914,1750648241035,-460.0,0.00021917,2]
[367073915,1750648241044,-858.81,0.00021917,2]
[367073916,1750648241053,-500.0,0.00021917,2]
[367073917,1750648241062,-460.0,0.00021917,2]
[367073918,1750648241071,-460.0,0.00021917,2]
[367073919,1750648241083,-460.0,0.00021917,2]
[367073920,1750648241092,-460.0,0.00021917,2]
[367073921,1750648241102,-460.0,0.00021917,2]
[367073922,1750648241112,-464.23441407,0.00021917,2]
[367073923,1750648241123,-460.0,0.00021917,2]
[367073924,1750648241132,-645.04,0.00021917,2]
[367073925,1750648241142,-460.0,0.00021917,2]
[367073926,1750648241151,-460.0,0.00021917,2]
[367073927,1750648241161,-460.0,0.00021917,2]
[367073928,1750648241171,-460.0,0.00021917,2]
[367073929,1750648241180,-460.0,0.00021917,2]
[367073930,1750648241189,-2600.8,0.00021917,2]
[367073931,1750648241198,-460.0,0.00021917,2]
[367073932,1750648241207,-460.68420026,0.00021917,2]
[367073933,1750648241216,-460.0,0.00021917,2]
[367073934,1750648241226,-460.0,0.00021917,2]
[367073935,1750648241235,-800.41,0.00021917,2]
[367073936,1750648241244,-460.0,0.00021917,2]
[367073937,1750648241253,-1212.39,0.00021917,2]
[367073938,1750648241262,-1400.27,0.00021917,2]
[367073939,1750648241271,-460.0,0.00021917,2]
[367073940,1750648241280,-3280.14,0.00021917,2]
[367073941,1750648241289,-498.75,0.00021917,2]
[367073942,1750648241298,-460.0,0.00021917,2]
[367073943,1750648241307,-1442.15,0.00021917,2]
[367073944,1750648241315,-629.42,0.00021917,2]
[367073945,1750648241325,-460.0,0.00021917,2]
[367073946,1750648241334,-460.0,0.00021917,2]
[367073947,1750648241344,-494.21,0.00021917,2]
[367073948,1750648241354,-464.35,0.00021917,2]
[367073949,1750648241363,-460.0,0.00021917,2]
[367073950,1750648241372,-460.0,0.00021917,2]
[367073951,1750648241382,-460.0,0.00021917,2]
[367073952,1750648241391,-500.0,0.00021917,2]
[367073953,1750648241399,-546.62,0.00021917,2]
[367073954,1750648241408,-5037.08,0.00021917,2]
[367073955,1750648241417,-460.0,0.00021917,2]
[367073956,1750648241426,-460.0,0.00021917,2]
[367073957,1750648241436,-460.0,0.00021917,2]
[367073958,1750648241445,-460.0,0.00021917,2]
[367073959,1750648241454,-460.0,0.00021917,2]
[367073960,1750648241463,-460.0,0.00021917,2]
[367073961,1750648241471,-400.5505396,0.00021917,2]
[367073962,1750648241481,-1236.69,0.00021917,2]
[367073963,1750648241490,-1075.15,0.00021917,2]
[367073964,1750648241498,-624.49,0.00021917,2]
[367073965,1750648241507,-460.0,0.00021917,2]
[367073966,1750648241723,-460.0,0.00021917,2]
[367073967,1750648241733,-460.0,0.00021917,2]
[367073968,1750648241742,-460.0,0.00021917,2]
[367073969,1750648241751,-771.25,0.00021917,2]
[367073970,1750648241760,-652.57,0.00021917,2]
[367073971,1750648241769,-444.12479345,0.00021917,2]
[367073972,1750648241777,-670.33,0.00021917,2]
[367073973,1750648241786,-460.0,0.00021917,2]
[367073974,1750648241795,-580.82992214,0.00021917,2]
[367073975,1750648241804,-460.0,0.00021917,2]
[367073976,1750648241813,-460.0,0.00021917,2]
[367073977,1750648241822,-18846.32,0.00021917,2]
[367073978,1750648241832,-460.0,0.00021917,2]
[367073979,1750648241841,-1953.36,0.00021917,2]
[367073980,1750648241850,-879.36,0.00021917,2]
[367073981,1750648241858,-460.0,0.00021917,2]
[367073982,1750648241867,-460.0,0.00021917,2]
[367073983,1750648241876,-460.0,0.00021917,2]
[367073984,1750648241885,-888.41,0.00021917,2]
[367073985,1750648241894,-460.0,0.00021917,2]
[367073986,1750648241902,-460.0,0.00021917,2]
[367073987,1750648241911,-3046.97,0.00021917,2]
[367073988,1750648241920,-618.62,0.00021917,2]
[367073989,1750648241929,-772.91,0.00021917,2]
[367073990,1750648241938,-460.0,0.00021917,2]
[367073991,1750648241947,-460.0,0.00021917,2]
[367073992,1750648241956,-460.0,0.00021917,2]
[367073993,1750648241966,-812.96,0.00021917,2]
[367073994,1750648241975,-460.0,0.00021917,2]
[367073995,1750648241984,-1713.69,0.00021917,2]
[367073996,1750648241994,-2748.62,0.00021917,2]
[367073997,1750648242003,-460.0,0.00021917,2]
[367073998,1750648242012,-2381.79,0.00021917,2]
[367073999,1750648242021,-460.0,0.00021917,2]
[367074000,1750648242030,-460.50583666,0.00021917,2]
[367074001,1750648242040,-460.0,0.00021917,2]
[367074002,1750648242049,-6362.27,0.00021917,2]
[367074003,1750648242059,-205.46665934,0.00021917,2]
[367074004,1750648242068,-460.0,0.00021917,2]
[367074005,1750648242077,-682.71,0.00021917,2]
[367074006,1750648242090,-460.0,0.00021917,2]
[367074007,1750648242099,-1199.76,0.00021917,2]
[367074008,1750648242109,-702.75,0.00021917,2]
[367074009,1750648242118,-460.0,0.00021917,2]
[367074010,1750648242128,-460.0,0.00021917,2]
[367074011,1750648242137,-1233.83,0.00021917,2]